bitfinex/quotes_SOLUSD_20241205
["timestamp","ask_amount","ask_price","bid_price","bid_amount"]
[1733359170672,1.06628451,227.29,227.18,43.19186667]
[1733359171403,21.06628451,227.29,227.18,43.19186667]
[1733359172098,21.06628451,227.29,227.18,42.69186667]
[1733359174298,21.06628451,227.29,227.19,6.5213]
[1733359174677,1.06628451,227.29,227.19,6.5213]
[1733359175073,21.06628451,227.29,227.19,6.5213]
[1733359175273,20.0,227.25,227.18,42.69186667]
[1733359175472,1.06628451,227.24,227.18,42.69186667]
[1733359175971,21.06628451,227.24,227.18,42.69186667]
[1733359176173,20.0,227.23,227.18,42.69186667]
[1733359176399,1.06628451,227.22,227.18,42.69186667]
[1733359176672,21.06628451,227.22,227.18,42.69186667]
[1733359177200,1.06628451,227.22,227.18,42.69186667]
[1733359177498,1.06628451,227.25,227.18,42.69186667]
[1733359178175,1.06628451,227.28,227.18,42.69186667]
[1733359178703,138.76628451,227.33,227.18,42.69186667]
[1733359178997,138.76628451,227.32,227.18,42.69186667]
[1733359179203,137.7,227.32,227.18,42.69186667]
[1733359179411,20.0,227.29,227.18,42.69186667]
[1733359179604,21.06628451,227.28,227.18,42.69186667]
[1733359179788,157.7,227.27,227.18,42.69186667]
[1733359180106,1.06628451,227.26,227.18,42.69186667]
[1733359182483,1.06628451,227.26,227.19,0.02074204]
[1733359183385,1.06628451,227.26,227.2,0.02074204]
[1733359183584,1.06628451,227.26,227.18,42.71260871]
[1733359184302,20.0,227.22,227.18,42.71260871]
[1733359184505,1.06628451,227.21,227.18,42.71260871]
[1733359185505,1.06628451,227.21,227.18,42.69186667]
[1733359185693,1.06628451,227.21,227.18,42.71272546]
[1733359186009,1.06628451,227.21,227.18,42.69186667]
[1733359186315,1.06628451,227.21,227.18,42.71272546]
[1733359186602,1.06628451,227.21,227.19,0.02085879]
[1733359187320,1.06628451,227.21,227.18,42.69186667]
[1733359188514,20.0,227.22,227.18,42.69186667]
[1733359188808,20.0,227.22,227.2,0.02097437]
[1733359188809,1.06628451,227.21,227.2,0.02097437]
[1733359189595,1.06628451,227.21,227.18,42.69186667]
[1733359189897,1.06628451,227.21,227.2,0.02]
[1733359190100,1.06628451,227.21,227.18,42.69186667]
[1733359192302,21.06628451,227.21,227.18,1e-08]
[1733359192886,1.06628451,227.21,227.18,1e-08]
[1733359193084,21.06628451,227.22,227.15,1e-08]
[1733359193298,21.06628451,227.22,227.03,6.4467]
[1733359193299,20.0,227.17,227.03,6.4467]
[1733359193513,1.06628451,227.16,227.03,6.4467]
[1733359193710,20.0,227.15,227.03,6.4467]
[1733359193922,1.06628451,227.14,227.03,6.4467]
[1733359195413,21.06628451,227.15,227.03,6.4467]
[1733359195622,20.0,227.14,227.03,6.4467]
[1733359195921,1.06628451,227.13,227.03,6.4467]
[1733359196106,20.0,227.12,227.04,1.5496]
[1733359196288,1.06628451,227.11,227.04,1.5496]
[1733359204132,1.06628451,227.14,227.04,1.5496]
[1733359204342,1.06628451,227.2,227.04,1.5496]
[1733359204803,137.7,227.26,227.04,1.5496]
[1733359204804,1.06628451,227.25,227.04,1.5496]
[1733359205000,138.76628451,227.25,227.04,1.5496]
[1733359205204,137.7,227.25,227.04,1.5496]
[1733359205510,10.0,227.2,227.03,6.4467]
[1733359205699,5.0,227.16,226.98,1.6527]
[1733359205896,6.53412622,227.15,226.98,1.6527]
[1733359206095,11.37346965,227.15,226.98,1.6527]
[1733359206300,20.0,227.12,226.98,1.6527]
[1733359206522,1.06628451,227.11,226.98,1.6527]
[1733359207100,21.06628451,227.11,226.98,1.6527]
[1733359207805,1.06628451,227.11,226.98,1.6527]
[1733359209428,20.0,227.09,226.98,1.6527]
[1733359209730,1.06628451,227.08,226.98,1.6527]
[1733359212605,137.7,227.19,226.98,1.6527]
[1733359212606,1.06628451,227.11,226.98,2.53143545]
[1733359212811,1.06628451,227.15,226.98,2.53143545]
[1733359213047,8.67333985,227.15,227.03,6.2553]
[1733359213224,1.06628451,227.14,227.03,6.2553]
[1733359213429,1.06628451,227.2,227.03,6.2553]
[1733359213625,137.7,227.19,227.03,6.2553]
[1733359213832,1.06628451,227.18,227.03,6.2553]
[1733359214323,20.0,227.16,227.03,6.2553]
[1733359214637,1.06628451,227.15,227.03,6.2553]
[1733359216939,20.0,227.12,227.03,6.2553]
[1733359217239,1.06628451,227.11,227.03,6.2553]
[1733359217745,1.06628451,227.18,227.04,1.6434]
[1733359217919,1.06628451,227.22,227.04,2.52178616]
[1733359218122,1.06628451,227.22,227.06,1.6621]
[1733359218326,8.62742526,227.26,227.07,7.12586129]
[1733359218526,1.06628451,227.25,227.07,7.12586129]
[1733359218717,1.06628451,227.3,227.07,6.2477]
[1733359219036,13.20732995,227.29,227.07,6.2477]
[1733359219243,20.0,227.26,227.07,6.2477]
[1733359219415,10.91094832,227.25,227.07,6.2477]
[1733359219615,20.0,227.22,227.07,6.2477]
[1733359219942,1.06628451,227.21,227.07,6.2477]
[1733359220941,1.06628451,227.24,227.07,6.2477]
[1733359221412,1.06628451,227.28,227.07,6.2477]
[1733359222227,4.3768221,227.27,227.07,6.2477]
[1733359222443,1.06628451,227.26,227.07,6.2477]
[1733359222748,20.0,227.23,227.07,6.2477]
[1733359222924,1.06628451,227.22,227.07,6.2477]
[1733359223124,21.06628451,227.22,227.07,6.2477]
[1733359223821,20.0,227.19,227.07,6.2477]
[1733359224025,1.06628451,227.18,227.07,6.2477]
[1733359224748,21.06628451,227.18,227.07,6.2477]
[1733359225348,1.06628451,227.18,227.07,6.2477]
[1733359225817,1.06628451,227.24,227.07,6.2477]
[1733359226021,6.53412622,227.24,227.07,6.2477]
[1733359227032,20.0,227.21,227.07,6.2477]
[1733359227232,1.06628451,227.2,227.07,6.2477]
[1733359227432,1.06628451,227.23,227.07,6.2477]
[1733359228648,20.0,227.21,227.07,6.2477]
[1733359228848,1.06628451,227.2,227.07,6.2477]
[1733359230947,1.06628451,227.23,227.1,6.1701]
[1733359231125,1.06628451,227.29,227.1,6.1701]
[1733359231845,9.66956008,227.29,227.1,6.1701]
[1733359232058,1.06628451,227.29,227.1,6.1701]
[1733359232341,20.0,227.27,227.1,6.1701]
[1733359232550,1.06628451,227.26,227.1,6.1701]
[1733359234343,21.06628451,227.26,227.1,6.1701]
[1733359234646,21.06628451,227.26,227.02,46.66666667]
[1733359234847,20.0,227.23,227.03,7.7367]
[1733359235050,26.53412622,227.22,227.03,7.7367]
[1733359235223,31.98546842,227.22,227.03,7.7367]
[1733359235852,36.09303875,227.22,227.03,7.7367]
[1733359237029,30.64169655,227.22,227.03,7.7367]
[1733359237237,26.53412622,227.22,227.03,7.7367]
[1733359237460,1.06628451,227.22,227.03,7.7367]
[1733359238422,1.06628451,227.22,227.04,7.7587]
[1733359238738,1.06628451,227.25,227.06,6.1615]
[1733359239129,20.0,227.23,227.06,6.1615]
[1733359239434,1.06628451,227.22,227.06,6.1615]
[1733359241460,2.76032471,227.22,227.06,6.1615]
[1733359242535,1.06628451,227.22,227.06,6.1615]
[1733359242841,1.06628451,227.22,227.07,1.5705]
[1733359243852,20.0,227.2,227.07,1.5705]
[1733359244151,1.06628451,227.19,227.1,0.02]
[1733359244755,1.06628451,227.19,227.08,0.02]
[1733359244932,1.06628451,227.19,227.07,1.5905]
[1733359245127,1.06628451,227.19,227.07,1.5705]
[1733359246834,20.0,227.16,227.07,1.5705]
[1733359247046,1.06628451,227.15,227.07,1.5705]
[1733359247943,1.06628451,227.16,227.07,1.5705]
[1733359248138,1.06628451,227.25,227.07,1.5705]
[1733359248452,1.06628451,227.25,227.08,0.02]
[1733359248651,9.91512274,227.25,227.08,0.02]
[1733359248839,1.06628451,227.25,227.08,0.02]
[1733359249043,1.06628451,227.25,227.1,6.5512]
[1733359249270,1.06628451,227.26,227.11,1.556]
[1733359249950,1.06628451,227.26,227.12,6.5512]
[1733359250147,1.06628451,227.3,227.12,6.5512]
[1733359250350,1.06628451,227.3,227.14,6.2763]
[1733359250558,1.06628451,227.3,227.15,1.5557]
[1733359250851,5.46784171,227.34,227.15,1.5557]
[1733359250852,1.06628451,227.33,227.16,6.2763]
[1733359251363,1.06628451,227.33,227.16,6.2963]
[1733359251876,2.19237357,227.33,227.17,0.02]
[1733359252040,4.3768221,227.32,227.16,6.2763]
[1733359252247,1.06628451,227.31,227.16,6.2763]
[1733359252565,20.0,227.29,227.16,6.2763]
[1733359252775,1.06628451,227.28,227.16,6.2763]
[1733359253650,1.06628451,227.3,227.16,6.2763]
[1733359256851,1.06628451,227.3,227.16,6.2963]
[1733359258046,1.06628451,227.33,227.18,6.1354]
[1733359258352,1.06628451,227.33,227.2,6.1354]
[1733359258560,1.06628451,227.38,227.2,6.1354]
[1733359258765,1.06628451,227.38,227.2,6.1554]
[1733359258947,2.79219981,227.38,227.2,6.1554]
[1733359259282,2.79219981,227.38,227.21,0.02]
[1733359261573,11.62424033,227.38,227.21,0.02]
[1733359261742,20.0,227.35,227.22,1.5759]
[1733359261948,1.06628451,227.34,227.22,1.5759]
[1733359264385,1.06628451,227.34,227.23,6.0784]
[1733359267087,1.06628451,227.4,227.26,1.6217]
[1733359267388,1.06628451,227.48,227.29,7.6265]
[1733359267571,1.06628451,227.48,227.3,7.6265]
[1733359268188,1.06628451,227.48,227.31,7.7112]
[1733359268753,20.0,227.46,227.31,7.7112]
[1733359268982,1.06628451,227.45,227.31,7.7112]
[1733359269173,20.0,227.42,227.31,7.7112]
[1733359269377,26.53412622,227.41,227.31,7.7112]
[1733359269759,20.0,227.37,227.31,7.7112]
[1733359270078,21.06628451,227.36,227.31,7.7112]
[1733359271686,20.0,227.34,227.31,7.7112]
[1733359271866,1.06628451,227.33,227.31,7.7112]
[1733359272877,1.06628451,227.36,227.31,7.7112]
[1733359273087,8.58927661,227.42,227.31,7.7112]
[1733359273383,75.2608,227.53,227.31,7.7112]
[1733359273384,1.06628451,227.41,227.31,7.7112]
[1733359273565,5.46784171,227.47,227.31,7.7112]
[1733359273566,1.06628451,227.46,227.31,7.7112]
[1733359274187,138.76628451,227.51,227.31,7.7112]
[1733359274483,1.06628451,227.5,227.31,7.7112]
[1733359274785,6.53412622,227.5,227.31,7.7112]
[1733359275088,20.0,227.47,227.31,7.7112]
[1733359275295,1.06628451,227.46,227.31,7.7112]
[1733359276284,1.06628451,227.49,227.32,7.691]
[1733359276495,1.06628451,227.49,227.32,6.1743]
[1733359276661,1.06628451,227.52,227.34,6.1743]
[1733359276859,1.06628451,227.52,227.36,6.1743]
[1733359277064,1.06628451,227.52,227.38,6.1743]
[1733359277264,1.06628451,227.59,227.39,1.5167]
[1733359277464,9.87949442,227.59,227.39,1.5167]
[1733359277679,1.06628451,227.59,227.39,1.5167]
[1733359278397,1.06628451,227.59,227.4,6.1743]
[1733359279198,0.56795114,227.59,227.4,6.1743]
[1733359279674,20.0,227.58,227.42,6.3954]
[1733359279874,1.06628451,227.57,227.42,6.3954]
[1733359280794,1.06628451,227.57,227.44,6.6339]
[1733359281295,1.06628451,227.6,227.46,6.0225]
[1733359281477,1.06628451,227.65,227.47,1.5274]
[1733359281673,1.06628451,227.65,227.48,6.0225]
[1733359281997,1.06628451,227.65,227.49,1.5274]
[1733359282174,1.06628451,227.71,227.5,6.4308]
[1733359282376,1.06628451,227.71,227.51,1.5223]
[1733359282581,1.06628451,227.71,227.52,6.4308]
[1733359283599,5.46784171,227.7,227.52,6.4308]
[1733359283896,20.0,227.67,227.52,6.4308]
[1733359284098,1.06628451,227.66,227.53,1.5223]
[1733359284276,1.06628451,227.71,227.53,1.5223]
[1733359285187,1.06628451,227.72,227.53,1.5223]
[1733359285505,1.06628451,227.72,227.54,6.4107]
[1733359285722,1.06628451,227.72,227.55,8.1078]
[1733359285910,1.06628451,227.72,227.58,1.5797]
[1733359286278,0.5115196,227.73,227.59,6.3473]
[1733359286779,0.5115196,227.73,227.6,1.551]
[1733359287198,1.06628451,227.72,227.6,1.551]
[1733359291005,0.5115196,227.73,227.6,1.551]
[1733359291218,1.06628451,227.72,227.61,6.0927]
[1733359291393,0.5115196,227.73,227.62,1.6101]
[1733359291600,0.5115196,227.73,227.62,7.7028]
[1733359292814,0.5115196,227.73,227.63,6.6465]
[1733359297716,0.5115196,227.73,227.65,7.7663]
[1733359299914,1.06628451,227.81,227.66,1.5094]
[1733359300094,1.06628451,227.84,227.67,6.552]
[1733359300498,138.76628451,227.9,227.67,6.552]
[1733359300725,6.517154,227.89,227.67,6.552]
[1733359301019,11.14934024,227.89,227.67,6.552]
[1733359301319,20.0,227.85,227.67,6.552]
[1733359301521,1.06628451,227.84,227.67,6.552]
[1733359302525,1.06628451,227.87,227.67,6.552]
[1733359303248,4.10083117,227.86,227.67,6.552]
[1733359303409,1.06628451,227.85,227.67,6.552]
[1733359303926,20.0,227.83,227.67,6.552]
[1733359304230,1.06628451,227.82,227.67,1.6605]
[1733359304523,8.81505613,227.91,227.66,5.87595817]
[1733359304524,1.06628451,227.88,227.7,6.0044]
[1733359305400,1.06628451,227.9,227.7,6.0044]
[1733359305598,1.06628451,227.9,227.71,7.8064]
[1733359306525,1.06628451,227.91,227.71,7.8064]
[1733359307327,20.0,227.88,227.71,7.8064]
[1733359307512,1.06628451,227.87,227.71,7.8064]
[1733359308912,20.0,227.88,227.71,7.8064]
[1733359309309,0.24701841,227.87,227.71,7.8064]
[1733359310522,0.24701841,227.87,227.72,6.0822]
[1733359310921,0.24701841,227.9,227.73,1.6663]
[1733359311230,0.24701841,227.9,227.74,6.0822]
[1733359311939,0.24701841,227.9,227.75,1.51]
[1733359312108,0.24701841,227.91,227.76,6.5777]
[1733359312301,0.24701841,227.91,227.79,6.5777]
[1733359312707,0.24701841,227.91,227.81,6.5777]
[1733359314133,7.5,227.92,227.81,6.5777]
[1733359314435,0.24701841,227.91,227.81,6.5777]
[1733359315617,20.0,227.89,227.81,6.5777]
[1733359315821,0.24701841,227.88,227.81,6.5777]
[1733359317231,20.24701841,227.88,227.81,6.5777]
[1733359317431,0.24701841,227.88,227.81,6.5777]
[1733359320136,20.0,227.89,227.81,6.5777]
[1733359320827,0.24701841,227.88,227.81,6.5777]
[1733359323033,20.0,227.89,227.81,6.5777]
[1733359323235,0.24701841,227.88,227.81,6.5777]
[1733359325245,7.5,227.92,227.81,6.5777]
[1733359327041,7.5,227.92,227.84,1.5272]
[1733359328528,20.0,227.89,227.84,1.5272]
[1733359329419,0.24701841,227.91,227.84,1.5272]
[1733359329619,7.5,227.92,227.84,1.5272]
[1733359329822,0.24701841,227.91,227.84,1.5272]
[1733359330135,7.5,227.92,227.84,1.5272]
[1733359331752,7.5,227.92,227.84,2.40254104]
[1733359331913,7.5,227.92,227.84,1.5272]
[1733359332925,20.0,227.89,227.84,1.5272]
[1733359333546,7.5,227.92,227.84,1.5272]
[1733359335256,20.0,227.89,227.84,1.5272]
[1733359339540,0.24701841,227.88,227.84,1.5272]
[1733359341251,0.24701841,227.88,227.79,6.6033]
[1733359342855,20.24701841,227.88,227.79,6.6033]
[1733359343944,0.24701841,227.88,227.79,6.6033]
[1733359344956,0.24701841,227.91,227.79,6.6033]
[1733359345542,0.24701841,227.91,227.73,7.5918]
[1733359345955,20.0,227.89,227.73,7.5918]
[1733359346166,0.24701841,227.88,227.73,7.5918]
[1733359349164,20.0,227.85,227.73,7.5918]
[1733359349364,0.24701841,227.84,227.73,7.5918]
[1733359350346,10.64943391,227.84,227.73,7.5918]
[1733359350557,20.0,227.81,227.73,7.5918]
[1733359350749,0.24701841,227.8,227.73,7.5918]
[1733359353774,20.0,227.79,227.73,7.5918]
[1733359353979,0.24701841,227.78,227.73,7.5918]
[1733359357663,20.0,227.79,227.73,7.5918]
[1733359358079,0.24701841,227.78,227.73,7.5918]
[1733359360859,0.24701841,227.78,227.58,7.6384]
[1733359364960,0.24701841,227.78,227.62,7.7545]
[1733359365166,0.24701841,227.79,227.64,7.7545]
[1733359365580,0.32703834,227.88,227.64,7.7545]
[1733359365797,0.32703834,227.88,227.65,0.87596839]
[1733359366163,9.09771719,227.88,227.65,0.87596839]
[1733359366489,20.0,227.86,227.65,0.87596839]
[1733359366689,0.24701841,227.85,227.65,0.87596839]
[1733359366866,0.24701841,227.85,227.66,6.0771]
[1733359368272,0.24701841,227.85,227.67,1.6152]
[1733359370389,0.24701841,227.85,227.69,7.8239]
[1733359370694,0.24701841,227.88,227.69,7.8239]
[1733359371380,0.24701841,227.88,227.7,6.248]
[1733359371774,0.24701841,227.88,227.74,20.0]
[1733359372089,0.24701841,227.88,227.77,6.3814]
[1733359372294,7.5,227.92,227.77,6.3814]
[1733359372295,0.24701841,227.91,227.77,6.3814]
[1733359372595,1.7067361,227.91,227.77,6.3814]
[1733359372969,20.0,227.89,227.77,6.3814]
[1733359373187,20.0,227.87,227.77,6.3814]
[1733359373377,20.24701841,227.86,227.77,6.3814]
[1733359373569,20.0,227.85,227.77,6.3814]
[1733359373874,0.24701841,227.84,227.77,6.3814]
[1733359374080,20.24701841,227.84,227.77,6.3814]
[1733359374492,23.6578134,227.83,227.71,8.1969]
[1733359374788,0.24701841,227.82,227.71,8.1969]
[1733359375696,20.24701841,227.84,227.71,8.1969]
[1733359378479,0.24701841,227.84,227.71,8.1969]
[1733359378692,0.24701841,227.87,227.71,8.1969]
[1733359379676,0.24701841,227.89,227.71,8.1969]
[1733359379875,20.24701841,227.89,227.71,8.1969]
[1733359380398,20.0,227.88,227.71,8.1969]
[1733359380573,0.24701841,227.87,227.71,8.1969]
[1733359380995,0.24701841,227.87,227.74,8.169]
[1733359381192,0.24701841,227.91,227.74,8.169]
[1733359381394,0.24701841,227.91,227.74,6.6546]
[1733359381612,0.24701841,227.91,227.76,6.6546]
[1733359382189,20.0,227.92,227.76,6.6546]
[1733359382501,8.80849366,227.91,227.76,6.6546]
[1733359382705,0.24701841,227.91,227.76,6.6546]
[1733359382889,0.24701841,227.95,227.76,6.6546]
[1733359383471,20.0,227.94,227.76,6.6546]
[1733359383795,20.0,227.92,227.76,6.6546]
[1733359383973,0.24701841,227.91,227.76,6.6546]
[1733359384393,0.24701841,227.91,227.71,5.0]
[1733359384394,0.24701841,227.91,227.78,6.6546]
[1733359385007,20.0,227.93,227.78,6.6546]
[1733359385008,0.24701841,227.92,227.78,6.6546]
[1733359397798,23.776884,227.88,227.78,6.6546]
[1733359398013,23.776884,227.84,227.78,6.6546]
[1733359398214,24.02390241,227.84,227.78,6.6546]
[1733359398417,23.776884,227.92,227.78,6.6546]
[1733359398717,20.0,227.81,227.78,6.6546]
[1733359398924,24.02390241,227.8,227.78,6.6546]
[1733359402691,23.776884,227.8,227.78,6.6546]
[1733359403795,20.0,227.85,227.78,6.6546]
[1733359404121,20.0,227.81,227.78,6.6546]
[1733359405610,0.24701841,227.84,227.78,6.6546]
[1733359405801,20.0,227.88,227.78,6.6546]
[1733359406005,0.24701841,227.87,227.78,6.6546]
[1733359407220,20.0,227.84,227.78,6.6546]
[1733359407418,20.0,227.8,227.78,6.6546]
[1733359407818,0.24701841,227.82,227.78,6.6546]
[1733359408007,0.24701841,227.9,227.78,6.6546]
[1733359408398,0.24701841,227.95,227.78,6.6546]
[1733359409819,20.0,227.94,227.78,6.6546]
[1733359410005,24.02390241,227.93,227.78,6.6546]
[1733359410211,20.0,227.9,227.78,6.6546]
[1733359410508,0.24701841,227.92,227.8,6.0294]
[1733359410722,0.24701841,227.95,227.81,7.6378]
[1733359411408,0.5115196,227.96,227.83,1.6084]
[1733359411625,0.5115196,227.96,227.84,6.0294]
[1733359412494,0.5115196,227.96,227.85,1.6084]
[1733359412896,0.75853801,227.96,227.85,1.6084]
[1733359413119,0.75853801,227.96,227.86,6.0294]
[1733359413322,0.5115196,227.96,227.87,1.6084]
[1733359418104,0.5115196,227.96,227.87,1.5557]
[1733359419302,20.24701841,227.95,227.87,1.5557]
[1733359421329,0.24701841,227.95,227.87,1.5557]
[1733359421629,0.5115196,227.96,227.87,1.5557]
[1733359421836,20.5115196,227.96,227.87,1.5557]
[1733359422026,0.24701841,227.95,227.87,1.5557]
[1733359424129,0.24701841,227.95,227.8,6.4487]
[1733359424130,20.24701841,227.95,227.8,6.4487]
[1733359424310,20.0,227.93,227.8,6.4487]
[1733359424513,20.0,227.88,227.8,6.4487]
[1733359424728,0.24701841,227.87,227.8,6.4487]
[1733359425035,0.24701841,227.87,227.79,1.5957]
[1733359425607,20.24701841,227.91,227.79,1.5957]
[1733359426637,0.24701841,227.91,227.79,1.5957]
[1733359427021,0.24701841,227.92,227.79,1.5957]
[1733359427340,0.24701841,227.92,227.8,6.3841]
[1733359427721,9.19726603,227.96,227.95,19.75298159]
[1733359428025,0.5115196,227.96,227.95,19.75298159]
[1733359434051,0.5115196,227.96,227.88,1.6483]
[1733359434052,20.0,227.94,227.88,1.6483]
[1733359443927,20.0,227.94,227.8,6.3841]
[1733359443928,20.0,227.94,227.81,1.6363]
[1733359444133,20.0,227.93,227.81,1.6363]
[1733359444330,20.0,227.93,227.8,6.3841]
[1733359444331,20.0,227.88,227.8,6.3841]
[1733359444943,20.0,227.9,227.8,6.3841]
[1733359445139,20.0,227.89,227.75,7.6983]
[1733359445344,20.0,227.87,227.75,7.6983]
[1733359446341,20.0,227.88,227.75,7.6983]
[1733359447250,3.37239485,227.9,227.75,7.6983]
[1733359447251,8.81049599,227.9,227.75,7.6983]
[1733359447452,4.71037251,227.96,227.75,7.6983]
[1733359448856,20.0,227.94,227.75,7.6983]
[1733359449057,20.0,227.94,227.77,1.5993]
[1733359449358,20.0,227.94,227.78,6.5998]
[1733359450536,24.59539726,227.94,227.78,6.5998]
[1733359450843,20.0,227.93,227.78,6.5998]
[1733359451051,25.27131454,227.93,227.78,6.5998]
[1733359452839,20.0,227.92,227.78,6.5998]
[1733359453233,20.0,227.9,227.78,6.5998]
[1733359453563,20.0,227.89,227.78,6.5998]
[1733359457254,142.29539726,227.92,227.78,6.5998]
[1733359457561,137.7,227.92,227.78,6.5998]
[1733359458337,0.67591728,227.93,227.78,6.5998]
[1733359458542,0.5115196,227.96,227.78,6.5998]
[1733359459865,20.0,227.94,227.78,6.5998]
[1733359460361,0.5115196,227.96,227.81,1.6516]
[1733359461044,0.5115196,227.96,227.82,6.3273]
[1733359462249,20.0,227.94,227.82,6.3273]
[1733359463044,17.96057545,227.94,227.82,6.3273]
[1733359469756,20.0,227.92,227.82,6.3273]
[1733359470275,3.71035349,227.91,227.82,6.3273]
[1733359470462,23.71035349,227.91,227.82,6.3273]
[1733359471051,20.0,227.9,227.82,6.3273]
[1733359471269,20.0,227.88,227.82,6.3273]
[1733359471955,1.99063354,227.9,227.82,6.3273]
[1733359472144,0.5115196,227.96,227.82,6.3273]
[1733359472974,6.60905098,227.96,227.82,6.3273]
[1733359473166,20.0,227.93,227.82,6.3273]
[1733359479047,23.00426824,227.93,227.82,6.3273]
[1733359479250,20.0,227.92,227.82,6.3273]
[1733359479471,22.69671879,227.92,227.82,6.3273]
[1733359479977,20.0,227.87,227.82,6.3273]
[1733359480178,4.83586442,227.91,227.82,6.3273]
[1733359480179,20.0,227.86,227.82,6.3273]
[1733359480485,20.0,227.86,227.81,1.6516]
[1733359481000,20.0,227.85,227.77,6.0917]
[1733359481274,20.0,227.86,227.77,6.0917]
[1733359481463,22.69671879,227.86,227.77,6.0917]
[1733359482371,20.0,227.82,227.72,6.3036]
[1733359482551,22.69671879,227.81,227.72,6.3036]
[1733359482751,165.23258321,227.81,227.72,6.3036]
[1733359482951,169.82798047,227.81,227.72,6.3036]
[1733359483284,169.82798047,227.81,227.7,1.5807]
[1733359483285,20.0,227.78,227.7,1.5807]
[1733359483599,28.20825927,227.77,227.7,1.5807]
[1733359483759,20.0,227.73,227.7,1.5807]
[1733359483958,20.0,227.73,227.66,6.3036]
[1733359484154,20.0,227.72,227.66,6.3036]
[1733359484465,20.0,227.68,227.64,1.5807]
[1733359487470,20.0,227.7,227.64,1.5807]
[1733359488900,11.82330778,227.72,227.64,1.5807]
[1733359489072,3.03443621,227.72,227.64,1.5807]
[1733359489574,0.1472963,227.67,227.64,1.5807]
[1733359490574,0.54042258,227.67,227.64,1.5807]
[1733359499279,0.54042258,227.67,227.52,7.6749]
[1733359499486,20.0,227.66,227.52,7.6749]
[1733359499708,23.00426824,227.65,227.52,7.6749]
[1733359499888,23.00426824,227.65,227.53,2.19648519]
[1733359500079,23.00426824,227.65,227.52,7.6749]
[1733359500474,23.00426824,227.65,227.53,2.19653816]
[1733359500680,20.0,227.65,227.52,7.6749]
[1733359500979,0.54042258,227.67,227.52,7.6749]
[1733359501180,0.54042258,227.67,227.53,7.6749]
[1733359502577,0.54042258,227.67,227.54,6.5089]
[1733359503195,20.0,227.65,227.54,6.5089]
[1733359503402,20.0,227.61,227.54,6.5089]
[1733359503686,23.776884,227.6,227.54,6.5089]
[1733359503887,23.776884,227.64,227.54,6.5089]
[1733359504289,0.7038973,227.67,227.55,1.564]
[1733359504490,0.7038973,227.67,227.56,6.657]
[1733359504690,0.31077102,227.67,227.58,6.26387372]
[1733359504911,0.16347472,227.67,227.58,6.11657742]
[1733359505291,137.7,227.73,227.58,5.9531027]
[1733359505496,145.73443621,227.72,227.58,5.9531027]
[1733359505706,155.16569789,227.72,227.58,5.9531027]
[1733359505945,20.0,227.68,227.58,5.9531027]
[1733359506116,157.7,227.67,227.57,1.564]
[1733359506395,20.0,227.63,227.57,1.564]
[1733359506596,23.776884,227.58,227.57,1.564]
[1733359508191,23.776884,227.58,227.57,7.9038]
[1733359510893,20.0,227.68,227.57,7.9038]
[1733359511626,20.0,227.69,227.57,7.9038]
[1733359512213,20.0,227.65,227.57,7.9038]
[1733359512413,23.776884,227.6,227.57,7.9038]
[1733359512919,8.67054698,227.71,227.57,7.9038]
[1733359513103,137.7,227.74,227.57,7.9038]
[1733359513516,141.58443988,227.74,227.57,7.9038]
[1733359513709,20.0,227.71,227.57,7.9038]
[1733359513901,23.88443988,227.7,227.57,7.9038]
[1733359514105,20.0,227.66,227.57,7.9038]
[1733359514335,20.0,227.58,227.57,7.9038]
[1733359514501,43.776884,227.58,227.57,7.9038]
[1733359515503,20.0,227.71,227.57,7.9038]
[1733359515704,157.7,227.71,227.57,7.9038]
[1733359516706,23.776884,227.7,227.57,7.9038]
[1733359517322,23.776884,227.66,227.57,7.9038]
[1733359517828,23.776884,227.62,227.57,7.9038]